Cogmind - Beta 10.2 @@@ ROGUE MODE // 2020.12.13 @ 13:09:56 Player: Nalzok Result: Destroyed by D-53 Grenadier with Mini Grenade Launcher Performance ------------- Evolutions (0) 0 Regions Visited (2) 400 Robots Destroyed (2) 10 Value Destroyed (68) 68 Prototype IDs (0) 0 Alien Tech Used (0) 0 Bonus (-74) -74 TOTAL SCORE: 404 Bonus ------- Friendly Fire -74 Cogmind --------- Core Integrity 0/250 Matter 215/300 Energy 45/250 System Corruption 0% Temperature Cool (0) Movement Rolling (100) Ox1 Location -10/Mines Parts ------- > --- POWER (1) -------- Ion Engine > --- PROPULSION (2) --- Wheel Compact Wheel > --- UTILITY (2) ------ High-capacity Storage Unit Power Shielding > --- WEAPON (2) ------- Small Laser > --- INVENTORY (12) --- Large Storage Unit Large Storage Unit ECM Suite Power Shielding Power Shielding Power Shielding Peak State ------------ > --- POWER ------------ Ion Engine > --- PROPULSION ------- Aluminum Leg Aluminum Leg > --- UTILITY ---------- Heat Sink High-capacity Storage Unit > --- WEAPON ----------- Small Laser Assault Rifle > --- INVENTORY -------- Ion Engine Wheel Compact Wheel Large Storage Unit ECM Suite Power Shielding Power Shielding Power Shielding Power Shielding Assault Rifle [Rating: 8] Favorites ----------- Power Ion Engine Engine Ion Engine Propulsion Aluminum Leg Leg Aluminum Leg Wheel Wheel Utility Heat Sink Device Heat Sink Storage High-capacity Storage Unit Protection Power Shielding Weapon Assault Rifle Energy Gun Small Laser Ballistic Gun Assault Rifle Build | -11 -10 -10 ------- Run | Scr Mat Min Slots Evolved . | . . . Power . | . . . Propulsion . | . . . Utility . | . . . Weapon . | . . . Parts Attached 9 | . 3 6 Power 1 | . . 1 Engine 1 | . . 1 Core . | . . . Reactor . | . . . Propulsion 2 | . . 2 Treads . | . . . Leg . | . . . Wheel 2 | . . 2 Hover . | . . . Flight . | . . . Utility 4 | . 3 1 Device 2 | . 2 . Storage 1 | . 1 . Processor . | . . . Hackware . | . . . Protection 1 | . . 1 Artifact . | . . . Weapon 2 | . . 2 Energy Gun 1 | . . 1 Energy Cannon . | . . . Ballistic Gun 1 | . . 1 Ballistic Cannon . | . . . Launcher . | . . . Special Weapon . | . . . Impact Weapon . | . . . Slashing Weapon . | . . . Piercing Weapon . | . . . Special Melee Weapon . | . . . Unidentified Prototypes . | . . . Parts Lost 6 | . . 6 Power 1 | . . 1 Propulsion 2 | . . 2 Utility 1 | . . 1 Weapon 2 | . . 2 Highest Loss Streak 6 | . . 6 Average Slot Usage (%) 95 | . 94 98 Engine 14 | . 14 14 Leg 27 | . 28 24 Wheel 1 | . . 3 Device 10 | . 9 12 Storage 14 | . 14 14 Energy Gun 12 | . 14 7 Ballistic Gun 15 | . 14 19 Naked Turns . | . . . Heaviest Build 42 | 12 41 42 Greatest Support 26 | 20 20 26 Greatest Overweight (x) 3 | . 2 3 Average Overweight (x) . | . . 2 Largest Inventory Capacity 12 | 6 12 12 Average Capacity 9 | 6 8 12 Most Carried 11 | 5 11 11 Average Carried 7 | 4 6 10 Final Capacity 12 | 6 12 12 Final Carried 11 | 4 11 6 Class Distribution -------------------- 100% | Mutant Dominant Class ---------------- Mutant | -10/Materials Mutant | -10/Mines Resources | -11 -10 -10 ----------- Run | Scr Mat Min Matter Collected 241 | 200 41 . Remotely . | . . . Salvage Created 90 | . 90 . Parts 3 | . 3 . Haulers Intercepted . | . . . Recyclers Shooed . | . . . Parts Field Recycled . | . . . Retrieved Matter . | . . . Parts Self-Destructed . | . . . Prevented . | . . . Kills | -11 -10 -10 ------- Run | Scr Mat Min Combat Hostiles Destroyed 2 | . 2 . Guns 2 | . 2 . Classes Destroyed 1 | . 1 . Grunt 2 | . 2 . Best Kill Streak 2 | . 2 . Combat Bots Only 2 | . 2 . Max Kills in Single Turn 1 | . 1 . Gunslinging . | . . . Exploded . | . . . Melee . | . . . Uniques/NPCs Destroyed . | . . . Combat | -11 -10 -10 -------- Run | Scr Mat Min Damage Taken 896 | . 89 807 Core 255 | . 11 244 Absorbed by Shields . | . . . Core Remaining (%) 100 | 100 . . Volleys Fired 17 | . 7 10 Largest 2 | . 2 2 Hottest 60 | . 60 60 Shots Fired 33 | . 14 19 Gun 33 | . 14 19 Cannon . | . . . Launcher . | . . . Special . | . . . Kinetic 22 | . 7 15 Thermal 11 | . 7 4 Explosive . | . . . Electromagnetic . | . . . Robot Hit Streak 6 | . 6 4 Robot Miss Streak 3 | . 1 3 Penetration Max . | . . . Secondary Targets 1 | . 1 . Max Gunslinging Chain 1 | . 1 . Shots Hit Robots 20 | . 11 9 Core Hits 5 | . 4 1 Critical Hits . | . . . Critical Kills . | . . . Critical Parts Destroyed . | . . . Melee Attacks . | . . . Impact . | . . . Slashing . | . . . Piercing . | . . . Sneak Attacks . | . . . Combat Hostiles . | . . . Follow-up Attacks . | . . . Damage Inflicted 208 | . 124 84 Guns 208 | . 124 84 Cannons . | . . . Explosions . | . . . Melee . | . . . Ramming . | . . . Kinetic 118 | . 56 62 Thermal 90 | . 68 22 Explosive . | . . . Electromagnetic . | . . . Impact . | . . . Slashing . | . . . Piercing . | . . . Highest Corruption . | . . . Average Corruption . | . . . Corruption Purged . | . . . Overload Shots . | . . . Overflow Damage . | . . . Projectiles . | . . . Explosions . | . . . Melee . | . . . Knockbacks . | . . . Impact . | . . . Kinetic . | . . . Secondary . | . . . Self-Inflicted Damage . | . . . Shots . | . . . Rammed . | . . . Targets Rammed . | . . . Kicked . | . . . Crushed . | . . . Highest Temperature 42 | . 42 . Average Temperature 24 | . 24 . Received Heat Transfer 48 | . 48 . Siege Activations . | . . . Robots Corrupted . | . . . Combat Hostiles . | . . . Parts Fried . | . . . Impact Corruptions . | . . . Robots Melted . | . . . Combat Hostiles . | . . . Parts Melted . | . . . Heat Transferred 200 | . 150 50 Parts Sabotaged . | . . . Parts Stolen . | . . . Parts Stripped . | . . . Power Chain Reactions . | . . . Missiles Intercepted . | . . . Alert | -11 -10 -10 ------- Run | Scr Mat Min Peak Influence 85 | . 85 48 Initial 33 | . . 33 Average 43 | . 49 31 Maximum Alert Level . | . . . Low Security (%) 100 | 100 100 100 Level 1 . | . . . Level 2 . | . . . Level 3 . | . . . Level 4 . | . . . Level 5 . | . . . High Security . | . . . Max Security . | . . . Squads Dispatched 2 | . 2 . Investigation 2 | . 2 . Extermination . | . . . Reinforcement . | . . . Assault . | . . . Garrison . | . . . Intercept . | . . . Construction Impeded . | . . . Haulers Reinforced . | . . . Stealth | -11 -10 -10 --------- Run | Scr Mat Min Distress Signals 1 | . 1 . Communications Jammed . | . . . Distress Signals . | . . . Times Spotted 8 | . 3 5 Peak Tracking Total 4 | . 2 4 Tactical Retreats 1 | . 1 . Traps | -11 -10 -10 ------- Run | Scr Mat Min Traps Triggered . | . . . Indirectly . | . . . Trap Hack Attempts . | . . . Triggered . | . . . Disarmed . | . . . Reprogrammed . | . . . Reused . | . . . Traps Extracted . | . . . Installed . | . . . Triggered . | . . . Machines | -11 -10 -10 ---------- Run | Scr Mat Min Machines Disabled . | . . . Max in Single Turn . | . . . Machines Sabotaged . | . . . Garrisons Compromised . | . . . Overloaded Fab Kills . | . . . Fab Network Shutdowns . | . . . Hacking | -11 -10 -10 --------- Run | Scr Mat Min Machines Accessed 1 | . 1 . Terminals 1 | . 1 . Fabricators . | . . . Repair Stations . | . . . Recycling Units . | . . . Scanalyzers . | . . . Garrison Access . | . . . Total Hacks 3 | . 3 . Successful 1 | . 1 . Failed 2 | . 2 . Catastrophic . | . . . Database Lockouts . | . . . Manual 3 | . 3 . Terminals 3 | . 3 . Fabricators . | . . . Repair Stations . | . . . Recycling Units . | . . . Scanalyzers . | . . . Garrison Access . | . . . Terminal Hacks . | . . . Fabricator Hacks . | . . . Repair Station Hacks . | . . . Recycling Unit Hacks . | . . . Scanalyzer . | . . . Garrison Access Hacks . | . . . Unauthorized Hacks 1 | . 1 . Terminals 1 | . 1 . Botnet 1 | . 1 . Fabricators . | . . . Repair Stations . | . . . Recycling Units . | . . . Scanalyzers . | . . . Garrison Access . | . . . Data Cores Recovered . | . . . Used . | . . . Hacking Detections 1 | . 1 . Full Trace Events 1 | . 1 . Feedback Events . | . . . Feedback Blocked . | . . . Robot Schematics Acquired . | . . . Robots Built . | . . . Matter . | . . . Time . | . . . Total Robot Build Rating . | . . . Part Schematics Acquired . | . . . Parts Built . | . . . Matter . | . . . Time . | . . . Total Part Build Rating . | . . . Parts Repaired . | . . . Time . | . . . Parts Recycled . | . . . Recycled Matter . | . . . Retrieved Matter . | . . . Retrieved Components . | . . . Parts Scanalyzed . | . . . Part Schematics Acquired . | . . . Parts Damaged . | . . . Bothacking | -11 -10 -10 ------------ Run | Scr Mat Min Used RIF Installer . | . . . Robots Hacked . | . . . Non-combat . | . . . Combat . | . . . Robot Hacks Applied . | . . . Relay Couplers Released . | . . . Robots Rewired . | . . . Allies Hacked . | . . . Hacks Repelled . | . . . Allies | -11 -10 -10 -------- Run | Scr Mat Min Total Allies . | . . . Largest Group . | . . . Highest-Rated Group . | . . . Highest-Rated Ally . | . . . Total Orders . | . . . Ally Attacks . | . . . Total Damage . | . . . Kills . | . . . Allies Corrupted . | . . . Allies Melted . | . . . Intel | -11 -10 -10 ------- Run | Scr Mat Min Robot Analysis Total . | . . . Derelict Logs Recovered . | . . . Drone Launches . | . . . Drone Recoveries . | . . . Exploration | -11 -10 -10 ------------- Run | Scr Mat Min Turns Passed 289 | 9 203 77 Spaces Moved 153 | 7 122 24 Core . | . . . Treads . | . . . Legs 152 | 7 122 23 Wheels 1 | . . 1 Hover . | . . . Flight . | . . . Fastest Speed 100 | 120 120 100 Average Speed 142 | 120 137 177 Slowest Speed 210 | 120 180 210 Overloaded Moves . | . . . Propulsion Burnouts . | . . . Robots Hopped . | . . . Cave-ins Triggered . | . . . Exploration Rate (%) 16 | 2 27 19 Regions Visited 2 Branch Regions 1 Pre-discovered Areas . | . . . Known Exits Taken . | . . . Unknown Exits Taken 2 | 1 1 . Scrap Searched . | . . . Spaces Dug . | . . . Terrain Destroyed . | . . . Melee . | . . . Projectile . | . . . AOE . | . . . Terrain Rammed . | . . . Walls Destroyed . | . . . Machines Disabled . | . . . Actions | -11 -10 -10 --------- Run | Scr Mat Min Total 191 | 8 143 40 Wait 3 | . 3 . Move 151 | 6 121 24 Hop . | . . . Pick Up 7 | . 7 . Fast Attach 2 | . 2 . Attach 5 | . . 5 Detach 1 | . 1 . Swap 2 | . 1 1 Drop 3 | 2 1 . Fire 17 | . 7 10 Melee . | . . . Ram . | . . . Kick . | . . . Crush . | . . . Escape Stasis . | . . . Rewire . | . . . Trap . | . . . Miscellaneous . | . . . Route ------- -11/Scrapyard -10/Materials -10/Mines History --------- Turn | Location | Event 2 | -11/Scrapyard | Discovered new exit (range 2) 10 | -11/Scrapyard | Entered Materials 133 | -10/Materials | Met 8R-AWN 167 | -10/Materials | Discovered new exit (range 15) 213 | -10/Materials | Entered Mines 214 | -10/Mines | Assembled infested the area 215 | -10/Mines | Followed 8R-AWN into the Mines 219 | -10/Mines | Assisted by a Guerilla fighting off Assembled 284 | -10/Mines | Core integrity fell below 50% 289 | -10/Mines | Core integrity fell below 20% 290 | -10/Mines | Destroyed by D-53 Grenadier with Mini Grenade Launcher Last Messages --------------- 00269_ S-10 Pest destroyed. 00269_ R5-FAR(h) destroyed. 00274_ The unstable cave ceiling collapses. 00278_ S-10 Pest destroyed. 00279_ The unstable cave ceiling collapses. 00280_ Assault Rifle destroyed. 00280_ Heat Sink destroyed. 00281_ The unstable cave ceiling collapses. 00281_ Aluminum Leg destroyed. 00282_ The unstable cave ceiling collapses. 00282_ Ion Engine destroyed. 00282_ Assault Rifle destroyed. 00282_ Aluminum Leg destroyed. 00284_ U-05 Engineer lays Concrete. 00286_ The unstable cave ceiling collapses. 00286_ U-05 Engineer lays Concrete. 00286_ D-53 Grenadier destroyed. 00287_ U-05 Engineer lays Concrete. 00288_ The unstable cave ceiling collapses. 00289_ U-05 Engineer lays Concrete. Map ----- +----------------------------------------------------+ | ?????????????????????????????????????????????????? | | ?????????????????????????????????????????????????? | | ?????????????????????????????????????????????????? | | ?????????????????????????????????????????????????? | | ????##???????????????????????????????????????????? | | ????# ??????????????????????????????????????????? | | ????# ?????????????????????????????????????????? | | ????# ????????????????????????????????????????? | | ????# ???????????????? #?????????????????????? | | ????# #??????????????? #?????????????????????? | | ????# #?????????????? #?????????????????????? | | ????? #??########??? #?????????????????????? | | ????????# ### ## #??? #??###????????????????? | | ?????????# ###? #?? ?????????????????? | | ??????????# ## #?? #?????????????????? | | ??????????## # #? #?????????????????? | | ???????????## ### # ### #?????????????????? | | ????????????####### # # # #?????????????????? | | ?????????????????# #?????????????????? | | ?????????????????## #?????????????????? | | ?????????????????# # ##????? ##?????????? | | ?????????????????# #### #?????????? | | ???????????####### #?????????? | | ?????????? =%=% #??????????? | | ????????? %%[% r u #???????????? | | ?????????############ d@ u ##???????????? | | ????????????????????## #????????????? | | ????????????????????# #????????????? | | ????????????????????## #???????????? | | ?????????????????????### ### ?????????? | | ???????????????????????# #??# ?????????? | | ??????????????????????? #??? ?????????? | | ??????????????????????? % #???? ??????????? | | ?????????????????????? ????####### ??????????? | | ?????????????????????? ??????????????????????? | | ?????????????????????? ??????????????????????? | | ????????????????????? ??????????????????????? | | ????????????????????? ??????????????????????? | | ????????????????????? #??????????????????????? | | ????????????????????? r ???????????????????????? | | ??????????????????????? #???????????????????????? | | ?????????????????????????????????????????????????? | | ?????????????????????????????????????????????????? | | ?????????????????????????????????????????????????? | | ?????????????????????????????????????????????????? | | ?????????????????????????????????????????????????? | | ?????????????????????????????????????????????????? | | ?????????????????????????????????????????????????? | | ?????????????????????????????????????????????????? | | ?????????????????????????????????????????????????? | +----------------------------------------------------+ Best States ------------- Heat Dissipation 35 Energy Generation 10 Energy Capacity 250 Matter Stores 300 Matter Capacity 300 Sight Range 16 Terrain Scan Density 10 ECM Strength 1 Power Shielding 33 Evasion (%) 40 Item Schematics ----------------- None Robot Schematics ------------------ None Fabricated ------------ Nothing Alien Tech Used ----------------- None Achievements -------------- None Challenges ------------ None Game ------ Seed SurgeZioniteShifter Manual? 0 Play Time 00:05:15 Cumulative 293.7 hours Start 2020.12.08 @ 19:12:06 End 2020.12.13 @ 13:09:56 Sessions 3 Manual Loads 0 Difficulty Rogue Special Mode None Game No. 441 Rogue 440 Adventurer 0 Explorer 1 Win Type - Total 1 Types 1/0/0/0/0/0/0/0/0 Lore% 67 Gallery% 81 Achievement% 56 Wizard Run 0 Options --------- ASCII 1 Keyboard 1 Movement Vi Keybinds 0 Fullscreen 2 Font 14/Cog Map View 72x54 Tactical HUD 1 Map Filters NONE Filters LOW_CONTRAST(13,24,33) Steam 0 RUN: 3008c67b-07e9-4729-bcf0-3264e8e5a238